[Event "Live Chess"]
[Site "Chess.com"]
[Date "2023.09.16"]
[Round "-"]
[White "P3treis"]
[Black "GabrielGGCF"]
[Result "1-0"]
[WhiteElo "919"]
[BlackElo "1382"]
[TimeControl "900+5"]
[EndTime "7:34:19 PDT"]
[Termination "P3treis venceu por desistência"]

1. e4 {[%clk 0:15:03]} 1... e5 {[%clk 0:14:56.7]} 2. Nf3 {[%clk 0:15:06.8]} 2...
Nc6 {[%clk 0:15:01]} 3. Bc4 {[%clk 0:15:10.1]} 3... Nd4 {[%clk 0:15:05.2]} 4.
Nxd4 {[%clk 0:15:09.5]} 4... exd4 {[%clk 0:15:08.6]} 5. c3 {[%clk 0:15:03.7]}
5... Qh4 {[%clk 0:15:06.6]} 6. d3 {[%clk 0:14:36.2]} 6... c5 {[%clk 0:15:01.5]}
7. O-O {[%clk 0:14:25.5]} 7... Bd6 {[%clk 0:15:01.2]} 8. g3 {[%clk 0:14:27.8]}
8... Qh3 {[%clk 0:14:49]} 9. Qf3 {[%clk 0:13:53.5]} 9... Nf6 {[%clk 0:14:51.2]}
10. Nd2 {[%clk 0:13:52]} 10... O-O {[%clk 0:14:52.3]} 11. cxd4 {[%clk
0:13:47.3]} 11... cxd4 {[%clk 0:14:44.6]} 12. Qf5 {[%clk 0:12:51.4]} 12... Ng4
{[%clk 0:14:36.6]} 13. Nf3 {[%clk 0:12:45.7]} 13... a6 {[%clk 0:14:24.4]} 14.
Bf4 {[%clk 0:12:29]} 14... Bxf4 {[%clk 0:14:23.7]} 15. Qxf4 {[%clk 0:12:29.5]}
15... b5 {[%clk 0:14:17.3]} 16. Bd5 {[%clk 0:12:10]} 16... Rb8 {[%clk
0:14:18.9]} 17. Qxb8 {[%clk 0:11:55.7]} 17... d6 {[%clk 0:13:59.8]} 18. Rac1
{[%clk 0:11:31.1]} 18... Be6 {[%clk 0:14:01.4]} 19. Qxd6 {[%clk 0:11:01.7]}
19... h5 {[%clk 0:13:56.7]} 20. Bxe6 {[%clk 0:10:39.4]} 20... fxe6 {[%clk
0:14:00.1]} 21. Qxe6+ {[%clk 0:10:37.2]} 21... Kh7 {[%clk 0:13:59.6]} 22. Ng5+
{[%clk 0:10:01.6]} 1-0

[Event "Live Chess"]
[Site "Chess.com"]
[Date "2023.09.16"]
[Round "-"]
[White "danilo655"]
[Black "VIAJEMCENTRODATERRA"]
[Result "0-1"]
[WhiteElo "729"]
[BlackElo "2011"]
[TimeControl "900+5"]
[EndTime "7:34:54 PDT"]
[Termination "VIAJEMCENTRODATERRA venceu por desistência"]

1. e4 {[%clk 0:14:58.3]} 1... c6 {[%clk 0:15:04.2]} 2. d4 {[%clk 0:14:58.5]}
2... d5 {[%clk 0:15:08.7]} 3. Nc3 {[%clk 0:14:45.6]} 3... dxe4 {[%clk 0:15:11]}
4. Nxe4 {[%clk 0:14:47]} 4... Nf6 {[%clk 0:15:15.2]} 5. Nxf6+ {[%clk 0:14:24.8]}
5... exf6 {[%clk 0:15:20.1]} 6. Be3 {[%clk 0:13:54.2]} 6... Bd6 {[%clk
0:15:21.1]} 7. Qd3 {[%clk 0:13:28.3]} 7... O-O {[%clk 0:15:12.7]} 8. O-O-O
{[%clk 0:13:29.7]} 8... Bg4 {[%clk 0:15:14.5]} 9. f3 {[%clk 0:13:27.5]} 9... Bh5
{[%clk 0:15:17.3]} 10. Be2 {[%clk 0:12:47.1]} 10... Re8 {[%clk 0:15:12]} 11. g4
{[%clk 0:12:27.9]} 11... Bg6 {[%clk 0:15:12.1]} 12. Qb3 {[%clk 0:12:01.3]} 12...
Qc7 {[%clk 0:15:10.4]} 13. f4 {[%clk 0:11:32.1]} 13... Rxe3 {[%clk 0:15:07.2]}
14. Qxe3 {[%clk 0:11:22.6]} 14... Bxf4 {[%clk 0:15:07.8]} 15. Qxf4 {[%clk
0:10:27.7]} 15... Qxf4+ {[%clk 0:15:09.2]} 16. Kb1 {[%clk 0:10:20.8]} 16... Qe4
{[%clk 0:15:04.9]} 17. Bd3 {[%clk 0:10:21.7]} 17... Qxh1 {[%clk 0:15:00.6]} 18.
Kc1 {[%clk 0:09:56.4]} 18... Bxd3 {[%clk 0:14:50]} 19. cxd3 {[%clk 0:09:51.5]}
19... Qxh2 {[%clk 0:14:37]} 20. a3 {[%clk 0:09:07.9]} 20... Nd7 {[%clk
0:14:38.3]} 21. Kb1 {[%clk 0:08:40.7]} 21... Qd6 {[%clk 0:14:33.2]} 22. Nf3
{[%clk 0:08:19.6]} 22... Re8 {[%clk 0:14:33.7]} 0-1

[Event "Live Chess"]
[Site "Chess.com"]
[Date "2023.09.16"]
[Round "-"]
[White "Giulliajapa007"]
[Black "ArthurMPRJ"]
[Result "0-1"]
[WhiteElo "1004"]
[BlackElo "1395"]
[TimeControl "900+5"]
[EndTime "7:35:05 PDT"]
[Termination "ArthurMPRJ venceu por xeque-mate"]

1. e4 {[%clk 0:15:01.4]} 1... c5 {[%clk 0:15:03.4]} 2. Nf3 {[%clk 0:15:04.4]}
2... e6 {[%clk 0:15:07.9]} 3. Nc3 {[%clk 0:15:06.3]} 3... a6 {[%clk 0:15:11]} 4.
b3 {[%clk 0:15:01.9]} 4... b5 {[%clk 0:15:14.5]} 5. Bb2 {[%clk 0:15:01.6]} 5...
Bb7 {[%clk 0:15:18.7]} 6. Ne2 {[%clk 0:14:58.2]} 6... Bxe4 {[%clk 0:15:18.5]} 7.
d3 {[%clk 0:15:01.2]} 7... Bxf3 {[%clk 0:15:21.3]} 8. gxf3 {[%clk 0:15:04.8]}
8... Nc6 {[%clk 0:15:22.5]} 9. Qd2 {[%clk 0:15:08.5]} 9... Nf6 {[%clk
0:15:24.9]} 10. O-O-O {[%clk 0:15:11.5]} 10... d5 {[%clk 0:15:18.1]} 11. Kb1
{[%clk 0:15:13.8]} 11... Rb8 {[%clk 0:15:15.3]} 12. Nf4 {[%clk 0:15:09.4]} 12...
Bd6 {[%clk 0:15:08.7]} 13. Be2 {[%clk 0:14:58.8]} 13... Qc7 {[%clk 0:15:08.1]}
14. Rhg1 {[%clk 0:15:01.4]} 14... Bxf4 {[%clk 0:15:11.4]} 15. Qe1 {[%clk
0:15:01.9]} 15... c4 {[%clk 0:14:53.5]} 16. Rxg7 {[%clk 0:15:00.6]} 16... Be5
{[%clk 0:14:54.4]} 17. Bxe5 {[%clk 0:14:43.6]} 17... Qxe5 {[%clk 0:14:59.3]} 18.
Rg2 {[%clk 0:14:34.4]} 18... Nd4 {[%clk 0:15:02.1]} 19. f4 {[%clk 0:14:28.3]}
19... Qxe2 {[%clk 0:15:03.8]} 20. Qxe2 {[%clk 0:14:29.5]} 20... Nxe2 {[%clk
0:15:08.7]} 21. Re1 {[%clk 0:14:30.8]} 21... Nd4 {[%clk 0:15:09.7]} 22. Rg5
{[%clk 0:14:20]} 22... Nf3 {[%clk 0:15:10.6]} 23. Rgg1 {[%clk 0:14:11.7]} 23...
Nxe1 {[%clk 0:15:11.8]} 24. Rxe1 {[%clk 0:14:15.2]} 24... Kd7 {[%clk 0:15:16.2]}
25. dxc4 {[%clk 0:14:10.7]} 25... bxc4 {[%clk 0:15:19.4]} 26. Kb2 {[%clk
0:14:11]} 26... Rhg8 {[%clk 0:15:23]} 27. a3 {[%clk 0:14:13.5]} 27... Rg2 {[%clk
0:15:24.5]} 28. f3 {[%clk 0:14:13.4]} 28... Rxh2 {[%clk 0:15:28]} 29. b4 {[%clk
0:14:11.8]} 29... h5 {[%clk 0:15:31.9]} 30. Kc3 {[%clk 0:14:15.4]} 30... h4
{[%clk 0:15:35.7]} 31. a4 {[%clk 0:14:19.3]} 31... h3 {[%clk 0:15:38.4]} 32. b5
{[%clk 0:14:18.8]} 32... axb5 {[%clk 0:15:40.6]} 33. a5 {[%clk 0:14:22.3]} 33...
Rg2 {[%clk 0:15:43.4]} 34. Kb4 {[%clk 0:14:25.6]} 34... h2 {[%clk 0:15:45.8]}
35. Rh1 {[%clk 0:14:26.1]} 35... Rh8 {[%clk 0:15:47.7]} 36. a6 {[%clk
0:14:23.7]} 36... Rg1 {[%clk 0:15:51.4]} 37. Rxh2 {[%clk 0:14:23.9]} 37... Rxh2
{[%clk 0:15:55.4]} 38. a7 {[%clk 0:14:28.2]} 38... Ra1 {[%clk 0:15:58.8]} 39.
Kxb5 {[%clk 0:14:31.3]} 39... Rxa7 {[%clk 0:15:59.5]} 40. Kb6 {[%clk 0:14:35.4]}
40... Ra3 {[%clk 0:15:54.2]} 41. Kc5 {[%clk 0:14:33.1]} 41... Rxc2 {[%clk
0:15:47.9]} 42. Kd4 {[%clk 0:14:36.8]} 42... Rd2+ {[%clk 0:15:50.8]} 43. Ke5
{[%clk 0:14:40.7]} 43... c3 {[%clk 0:15:51.2]} 44. Kxf6 {[%clk 0:14:44.2]} 44...
c2 {[%clk 0:15:55.4]} 45. Kxf7 {[%clk 0:14:48.3]} 45... c1=Q {[%clk 0:15:57.8]}
46. Kg6 {[%clk 0:14:52.5]} 46... Rxf3 {[%clk 0:15:58.2]} 47. Kf7 {[%clk
0:14:53.5]} 47... Rxf4+ {[%clk 0:15:59.4]} 48. Kg6 {[%clk 0:14:57.5]} 48... Rg2+
{[%clk 0:16:01.4]} 49. Kh5 {[%clk 0:15:00.4]} 49... Qh1# {[%clk 0:16:05.7]} 0-1

[Event "Live Chess"]
[Site "Chess.com"]
[Date "2023.09.16"]
[Round "-"]
[White "Mozart5501"]
[Black "Edson_Zarnelli"]
[Result "1-0"]
[WhiteElo "1784"]
[BlackElo "785"]
[TimeControl "900+5"]
[EndTime "7:35:52 PDT"]
[Termination "Mozart5501 venceu por desistência"]

1. e4 {[%clk 0:15:04.3]} 1... e5 {[%clk 0:15:03.4]} 2. Nf3 {[%clk 0:15:08.6]}
2... Nc6 {[%clk 0:15:06.6]} 3. d4 {[%clk 0:15:13.2]} 3... exd4 {[%clk 0:15:04]}
4. Bc4 {[%clk 0:15:17.6]} 4... Bc5 {[%clk 0:14:55.6]} 5. c3 {[%clk 0:15:20.9]}
5... dxc3 {[%clk 0:14:59.4]} 6. Bxf7+ {[%clk 0:15:25]} 6... Kxf7 {[%clk
0:15:00.5]} 7. Qd5+ {[%clk 0:15:29.5]} 7... Ke8 {[%clk 0:14:54.7]} 8. Qh5+
{[%clk 0:15:32.2]} 8... g6 {[%clk 0:14:52.8]} 9. Qxc5 {[%clk 0:15:36.5]} 9...
cxb2 {[%clk 0:14:44.5]} 10. Bxb2 {[%clk 0:15:39.8]} 10... b6 {[%clk 0:14:46.1]}
11. Qc3 {[%clk 0:15:24.7]} 11... Qf6 {[%clk 0:14:34.8]} 12. Qxf6 {[%clk
0:15:26.8]} 12... Nxf6 {[%clk 0:14:38.7]} 13. Bxf6 {[%clk 0:15:31.5]} 13... Rf8
{[%clk 0:14:41.4]} 14. e5 {[%clk 0:15:35]} 14... d6 {[%clk 0:14:41.7]} 15. Bg7
{[%clk 0:15:24.8]} 15... Rf5 {[%clk 0:14:37.3]} 16. exd6 {[%clk 0:15:15.3]}
16... cxd6 {[%clk 0:14:38.5]} 17. O-O {[%clk 0:15:16]} 17... Ba6 {[%clk
0:14:41.8]} 18. Re1+ {[%clk 0:15:20]} 18... Ne5 {[%clk 0:14:40.7]} 19. Nxe5
{[%clk 0:15:22.7]} 19... dxe5 {[%clk 0:14:44.1]} 20. Rxe5+ {[%clk 0:15:27.3]}
20... Rxe5 {[%clk 0:14:46.7]} 21. Bxe5 {[%clk 0:15:31.9]} 21... Rd8 {[%clk
0:14:41.4]} 22. Nc3 {[%clk 0:15:35.6]} 22... Rd3 {[%clk 0:14:42.8]} 23. Re1
{[%clk 0:15:32.1]} 23... Kd7 {[%clk 0:14:41.1]} 24. g3 {[%clk 0:15:31.9]} 24...
Rd2 {[%clk 0:14:39.1]} 25. Rd1 {[%clk 0:15:32.3]} 25... Rxd1+ {[%clk 0:14:36.1]}
26. Nxd1 {[%clk 0:15:36.7]} 26... Be2 {[%clk 0:14:39.8]} 27. Ne3 {[%clk
0:15:40.7]} 27... Ke6 {[%clk 0:14:40.2]} 28. Bc3 {[%clk 0:15:40.1]} 28... Kd6
{[%clk 0:14:40.6]} 29. a3 {[%clk 0:15:39.4]} 29... Kc5 {[%clk 0:14:42.9]} 30.
Bb4+ {[%clk 0:15:42.5]} 30... Kb5 {[%clk 0:14:41.7]} 31. f4 {[%clk 0:15:46.1]}
31... a5 {[%clk 0:14:44.3]} 32. Bc3 {[%clk 0:15:44.9]} 32... a4 {[%clk
0:14:40.2]} 33. Kf2 {[%clk 0:15:47.8]} 33... Bc4 {[%clk 0:14:40.1]} 34. Nxc4
{[%clk 0:15:51.1]} 34... Kxc4 {[%clk 0:14:44.3]} 35. Bb4 {[%clk 0:15:55.7]}
35... Kb3 {[%clk 0:14:47.6]} 36. Ke3 {[%clk 0:15:59.9]} 36... Kc4 {[%clk
0:14:48.4]} 37. Ke4 {[%clk 0:16:03.7]} 37... b5 {[%clk 0:14:51.1]} 38. f5 {[%clk
0:16:08]} 38... gxf5+ {[%clk 0:14:53.4]} 39. Kxf5 {[%clk 0:16:12.6]} 39... Kd4
{[%clk 0:14:55.9]} 40. g4 {[%clk 0:16:16.4]} 40... Ke3 {[%clk 0:14:59.4]} 41. h4
{[%clk 0:16:21]} 41... Kf3 {[%clk 0:15:03.3]} 42. g5 {[%clk 0:16:25.7]} 42...
Kg3 {[%clk 0:15:07.4]} 43. h5 {[%clk 0:16:30.3]} 43... Kh4 {[%clk 0:15:11.7]}
44. g6 {[%clk 0:16:35]} 44... hxg6+ {[%clk 0:15:13.7]} 45. hxg6 {[%clk
0:16:38.9]} 45... Kh5 {[%clk 0:15:17.5]} 46. g7 {[%clk 0:16:43.5]} 46... Kh6
{[%clk 0:15:21.9]} 47. g8=Q {[%clk 0:16:48]} 1-0

[Event "Live Chess"]
[Site "Chess.com"]
[Date "2023.09.16"]
[Round "-"]
[White "Ggavioli"]
[Black "Abofado"]
[Result "1-0"]
[WhiteElo "1558"]
[BlackElo "573"]
[TimeControl "900+5"]
[EndTime "7:36:00 PDT"]
[Termination "Ggavioli venceu por xeque-mate"]

1. e4 {[%clk 0:15:04.3]} 1... c6 {[%clk 0:15:04.6]} 2. Nf3 {[%clk 0:15:08.9]}
2... d5 {[%clk 0:15:07.2]} 3. exd5 {[%clk 0:15:13.2]} 3... cxd5 {[%clk
0:15:11.1]} 4. d4 {[%clk 0:15:17.2]} 4... e5 {[%clk 0:15:15.3]} 5. dxe5 {[%clk
0:15:17.3]} 5... Qb6 {[%clk 0:15:19.3]} 6. Nc3 {[%clk 0:15:18.7]} 6... f6 {[%clk
0:15:19.7]} 7. Nxd5 {[%clk 0:15:19.8]} 7... fxe5 {[%clk 0:15:20.5]} 8. Nxb6
{[%clk 0:15:23.1]} 8... axb6 {[%clk 0:15:22.8]} 9. Nxe5 {[%clk 0:15:25.3]} 9...
Nf6 {[%clk 0:15:27.2]} 10. Bb5+ {[%clk 0:15:25.9]} 10... Bd7 {[%clk 0:15:28]}
11. Bxd7+ {[%clk 0:15:30.2]} 11... Nfxd7 {[%clk 0:15:32.9]} 12. Nxd7 {[%clk
0:15:34.4]} 12... Nxd7 {[%clk 0:15:36]} 13. Qe2+ {[%clk 0:15:38.7]} 13... Ne5
{[%clk 0:15:35.4]} 14. Qxe5+ {[%clk 0:15:41.9]} 14... Be7 {[%clk 0:15:40.3]} 15.
Bg5 {[%clk 0:15:45.5]} 15... O-O-O {[%clk 0:15:43.8]} 16. Bxe7 {[%clk
0:15:46.8]} 16... Rde8 {[%clk 0:15:47.5]} 17. Qe6+ {[%clk 0:15:51]} 17... Kc7
{[%clk 0:15:49.1]} 18. O-O-O {[%clk 0:15:50.5]} 18... h5 {[%clk 0:15:47.3]} 19.
Qd6+ {[%clk 0:15:49.3]} 19... Kc8 {[%clk 0:15:50.3]} 20. Qd7+ {[%clk 0:15:53.5]}
20... Kb8 {[%clk 0:15:53.3]} 21. Bd6+ {[%clk 0:15:57.9]} 21... Ka7 {[%clk
0:15:57]} 22. Qa4# {[%clk 0:16:02.1]} 1-0

[Event "Live Chess"]
[Site "Chess.com"]
[Date "2023.09.16"]
[Round "-"]
[White "xadrecarloso"]
[Black "augustodemoraisrocha"]
[Result "0-1"]
[WhiteElo "935"]
[BlackElo "1466"]
[TimeControl "900+5"]
[EndTime "7:36:24 PDT"]
[Termination "augustodemoraisrocha venceu por desistência"]

1. d4 {[%clk 0:14:57]} 1... d5 {[%clk 0:15:02.8]} 2. Bf4 {[%clk 0:15:00]} 2...
Nc6 {[%clk 0:15:06.1]} 3. e3 {[%clk 0:15:04.1]} 3... e6 {[%clk 0:15:10.4]} 4.
Nf3 {[%clk 0:15:08.2]} 4... Bd6 {[%clk 0:15:14.8]} 5. Bg3 {[%clk 0:15:10.3]}
5... Bxg3 {[%clk 0:15:17.9]} 6. hxg3 {[%clk 0:15:14.1]} 6... Nf6 {[%clk
0:15:22.4]} 7. Bd3 {[%clk 0:15:18.2]} 7... Bd7 {[%clk 0:15:24.4]} 8. Nbd2 {[%clk
0:15:21.7]} 8... Qe7 {[%clk 0:15:28.2]} 9. Qe2 {[%clk 0:15:19.8]} 9... e5 {[%clk
0:15:28]} 10. dxe5 {[%clk 0:15:13.2]} 10... Nxe5 {[%clk 0:15:32.9]} 11. Nxe5
{[%clk 0:15:16.3]} 11... Qxe5 {[%clk 0:15:37.8]} 12. f4 {[%clk 0:15:13.7]} 12...
Qxb2 {[%clk 0:15:19.9]} 13. Rb1 {[%clk 0:14:41]} 13... Qxa2 {[%clk 0:15:18.4]}
14. Rxb7 {[%clk 0:14:42.8]} 14... O-O {[%clk 0:15:11]} 15. Bxh7+ {[%clk
0:14:37.2]} 15... Nxh7 {[%clk 0:15:05]} 16. Kf2 {[%clk 0:13:59.9]} 16... f6
{[%clk 0:14:42]} 17. Qh5 {[%clk 0:13:59.7]} 17... Qxc2 {[%clk 0:14:28.6]} 18.
Qxh7+ {[%clk 0:14:02.7]} 18... Qxh7 {[%clk 0:14:31.6]} 19. Rxh7 {[%clk
0:14:04.3]} 19... Kxh7 {[%clk 0:14:36.5]} 20. Rxc7 {[%clk 0:14:05.6]} 20... Bb5
{[%clk 0:14:38]} 21. e4 {[%clk 0:14:00.4]} 21... dxe4 {[%clk 0:14:38.5]} 22.
Nxe4 {[%clk 0:14:03]} 22... Rfc8 {[%clk 0:14:41.1]} 23. Rxc8 {[%clk 0:14:02.7]}
23... Rxc8 {[%clk 0:14:46]} 24. Nd6 {[%clk 0:14:02.9]} 24... Rc5 {[%clk
0:14:48.8]} 25. g4 {[%clk 0:14:00.1]} 25... Bc6 {[%clk 0:14:47.4]} 26. g5 {[%clk
0:13:57.6]} 26... fxg5 {[%clk 0:14:48.5]} 27. fxg5 {[%clk 0:14:01.7]} 27... Rc2+
{[%clk 0:14:45.2]} 28. Kg3 {[%clk 0:14:04.2]} 28... Rxg2+ {[%clk 0:14:49.8]} 29.
Kf4 {[%clk 0:14:08.1]} 29... a5 {[%clk 0:14:50.6]} 30. Kf5 {[%clk 0:14:10]}
30... a4 {[%clk 0:14:48.6]} 31. Ne4 {[%clk 0:13:31.4]} 31... Bxe4+ {[%clk
0:14:51]} 32. Kxe4 {[%clk 0:13:35.4]} 32... Rxg5 {[%clk 0:14:55.6]} 33. Kf4
{[%clk 0:13:39.2]} 33... Rg6 {[%clk 0:14:53.4]} 0-1

[Event "Live Chess"]
[Site "Chess.com"]
[Date "2023.09.16"]
[Round "-"]
[White "gu1c0rrea"]
[Black "daniel-drummond"]
[Result "0-1"]
[WhiteElo "809"]
[BlackElo "1546"]
[TimeControl "900+5"]
[EndTime "7:36:59 PDT"]
[Termination "daniel-drummond venceu por xeque-mate"]

1. e4 {[%clk 0:15:04.5]} 1... e5 {[%clk 0:15:04.1]} 2. Nf3 {[%clk 0:15:08.1]}
2... Nc6 {[%clk 0:15:08.5]} 3. Bb5 {[%clk 0:15:10.5]} 3... Nf6 {[%clk
0:15:10.6]} 4. Qe2 {[%clk 0:15:12.7]} 4... d6 {[%clk 0:15:13]} 5. O-O {[%clk
0:15:14.9]} 5... a6 {[%clk 0:15:15.9]} 6. Ba4 {[%clk 0:15:18]} 6... b5 {[%clk
0:15:19]} 7. Bb3 {[%clk 0:15:22]} 7... Be7 {[%clk 0:15:20.7]} 8. d3 {[%clk
0:15:25.5]} 8... O-O {[%clk 0:15:24]} 9. c3 {[%clk 0:15:22.1]} 9... Na5 {[%clk
0:15:27]} 10. Bc2 {[%clk 0:15:24.5]} 10... c5 {[%clk 0:15:30.2]} 11. d4 {[%clk
0:15:28.2]} 11... Bg4 {[%clk 0:15:31.5]} 12. h3 {[%clk 0:15:31.3]} 12... Bxf3
{[%clk 0:15:31.2]} 13. Qxf3 {[%clk 0:15:36.2]} 13... Qc7 {[%clk 0:15:34.7]} 14.
dxe5 {[%clk 0:15:30.1]} 14... dxe5 {[%clk 0:15:37.8]} 15. Qd3 {[%clk 0:15:12.1]}
15... Rad8 {[%clk 0:15:38]} 16. Qg3 {[%clk 0:15:07.3]} 16... Qc6 {[%clk
0:15:20.6]} 17. Bh6 {[%clk 0:14:54.7]} 17... Nh5 {[%clk 0:15:14.9]} 18. Qg4
{[%clk 0:14:52.3]} 18... Qxh6 {[%clk 0:15:18.2]} 19. Qe2 {[%clk 0:14:36.8]}
19... Nf4 {[%clk 0:15:20.7]} 20. Qg4 {[%clk 0:14:35.2]} 20... Nc4 {[%clk
0:15:17.9]} 21. g3 {[%clk 0:14:31.2]} 21... Ng6 {[%clk 0:15:12.1]} 22. f4 {[%clk
0:14:30.3]} 22... exf4 {[%clk 0:15:13.3]} 23. gxf4 {[%clk 0:14:34.4]} 23... Ne3
{[%clk 0:15:16.2]} 24. Qf3 {[%clk 0:14:34.2]} 24... Nxc2 {[%clk 0:15:17.4]} 25.
f5 {[%clk 0:14:36.7]} 25... Ne5 {[%clk 0:15:17.2]} 26. Qe2 {[%clk 0:14:01]}
26... Nxa1 {[%clk 0:15:18.9]} 27. Na3 {[%clk 0:13:58.2]} 27... Qxh3 {[%clk
0:15:16.7]} 28. Rxa1 {[%clk 0:13:59.3]} 28... Nf3+ {[%clk 0:15:16.1]} 29. Kf2
{[%clk 0:13:59.9]} 29... Rd2 {[%clk 0:15:18.7]} 30. Qxd2 {[%clk 0:13:59.1]}
30... Nxd2 {[%clk 0:15:18]} 31. Ke2 {[%clk 0:14:03.2]} 31... Bg5 {[%clk
0:15:18.8]} 32. c4 {[%clk 0:14:05.1]} 32... Qe3+ {[%clk 0:15:21.5]} 33. Kd1
{[%clk 0:14:06.8]} 33... Rd8 {[%clk 0:15:24.5]} 34. Kc2 {[%clk 0:14:09]} 34...
Qd3+ {[%clk 0:15:26.3]} 35. Kd1 {[%clk 0:14:09.6]} 35... Nxc4+ {[%clk
0:15:26.6]} 36. Ke1 {[%clk 0:14:13.3]} 36... Bh4# {[%clk 0:15:27.5]} 0-1

[Event "Live Chess"]
[Site "Chess.com"]
[Date "2023.09.16"]
[Round "-"]
[White "kslusk"]
[Black "Francisco_Ferrari"]
[Result "0-1"]
[WhiteElo "854"]
[BlackElo "2178"]
[TimeControl "900+5"]
[EndTime "7:37:06 PDT"]
[Termination "Francisco_Ferrari venceu por desistência"]

1. e4 {[%clk 0:15:03]} 1... e5 {[%clk 0:15:01.7]} 2. Nf3 {[%clk 0:15:06.9]} 2...
Nc6 {[%clk 0:15:04.4]} 3. Bc4 {[%clk 0:15:10.8]} 3... Nf6 {[%clk 0:15:05.2]} 4.
d3 {[%clk 0:15:14.9]} 4... Be7 {[%clk 0:14:55.4]} 5. Nc3 {[%clk 0:15:18.8]} 5...
O-O {[%clk 0:14:54.7]} 6. O-O {[%clk 0:15:22.6]} 6... d6 {[%clk 0:14:54.9]} 7.
Nd5 {[%clk 0:15:21.4]} 7... Nxd5 {[%clk 0:14:56.4]} 8. Bxd5 {[%clk 0:15:25.4]}
8... Kh8 {[%clk 0:14:59.6]} 9. Bxc6 {[%clk 0:15:29.1]} 9... bxc6 {[%clk
0:15:02.8]} 10. d4 {[%clk 0:15:25.8]} 10... exd4 {[%clk 0:15:01.2]} 11. Qxd4
{[%clk 0:15:29.4]} 11... Bf6 {[%clk 0:14:57.6]} 12. Qd3 {[%clk 0:15:26.8]} 12...
a5 {[%clk 0:15:00.7]} 13. Rd1 {[%clk 0:15:25.8]} 13... Qe7 {[%clk 0:14:47.9]}
14. e5 {[%clk 0:15:05.7]} 14... dxe5 {[%clk 0:14:43.6]} 15. Re1 {[%clk 0:15:05]}
15... Ba6 {[%clk 0:14:34.3]} 16. Qe3 {[%clk 0:14:41.3]} 16... Rad8 {[%clk
0:14:31.4]} 17. Nxe5 {[%clk 0:14:37.6]} 17... Bxe5 {[%clk 0:14:34.3]} 18. Qxe5
{[%clk 0:14:41.6]} 18... Qxe5 {[%clk 0:14:37.9]} 0-1

[Event "Live Chess"]
[Site "Chess.com"]
[Date "2023.09.16"]
[Round "-"]
[White "ravypintodiniz"]
[Black "lucasportolelis"]
[Result "1-0"]
[WhiteElo "2053"]
[BlackElo "1685"]
[TimeControl "900+5"]
[EndTime "7:38:07 PDT"]
[Termination "ravypintodiniz venceu por desistência"]

1. e4 {[%clk 0:15:03.7]} 1... e5 {[%clk 0:15:03.7]} 2. Nf3 {[%clk 0:15:07.3]}
2... Nc6 {[%clk 0:15:08]} 3. Bb5 {[%clk 0:15:11.9]} 3... a6 {[%clk 0:15:07]} 4.
Ba4 {[%clk 0:15:15.4]} 4... Nf6 {[%clk 0:15:09.4]} 5. O-O {[%clk 0:15:18.7]}
5... b5 {[%clk 0:15:11]} 6. Bb3 {[%clk 0:15:22.4]} 6... Nxe4 {[%clk 0:15:15.1]}
7. Re1 {[%clk 0:15:26]} 7... d5 {[%clk 0:15:08.6]} 8. d3 {[%clk 0:15:29.8]} 8...
Nf6 {[%clk 0:15:10.1]} 9. Bg5 {[%clk 0:15:20.4]} 9... h6 {[%clk 0:14:50]} 10.
Bxf6 {[%clk 0:15:19.4]} 10... gxf6 {[%clk 0:14:50.1]} 11. Nc3 {[%clk 0:15:20.5]}
11... Be6 {[%clk 0:14:48.6]} 12. Ne2 {[%clk 0:15:05.5]} 12... Na5 {[%clk
0:14:44.1]} 13. Ng3 {[%clk 0:15:02.9]} 13... c5 {[%clk 0:14:23.5]} 14. c3 {[%clk
0:15:01]} 14... Nxb3 {[%clk 0:14:13.2]} 15. axb3 {[%clk 0:15:03.6]} 15... h5
{[%clk 0:13:49.2]} 16. Nh4 {[%clk 0:14:50.5]} 16... d4 {[%clk 0:13:23.2]} 17.
Nxh5 {[%clk 0:14:05.9]} 17... Bh6 {[%clk 0:11:07.1]} 18. Qf3 {[%clk 0:13:41.2]}
18... Bg5 {[%clk 0:10:53.4]} 19. Ng7+ {[%clk 0:13:43.4]} 19... Kf8 {[%clk
0:10:52.6]} 20. Nxe6+ {[%clk 0:13:45.7]} 20... fxe6 {[%clk 0:10:53.6]} 21. Ng6+
{[%clk 0:13:49.6]} 21... Kg7 {[%clk 0:10:57.9]} 22. Nxh8 {[%clk 0:13:53.4]}
22... Qxh8 {[%clk 0:11:02.5]} 23. Qb7+ {[%clk 0:13:52.8]} 23... Kg6 {[%clk
0:11:01.2]} 24. Rxa6 {[%clk 0:13:47.5]} 24... Rb8 {[%clk 0:10:48.9]} 25. Qe4+
{[%clk 0:13:43.5]} 25... Kf7 {[%clk 0:10:46.9]} 26. Ra7+ {[%clk 0:13:45.4]}
26... Kg8 {[%clk 0:10:41.4]} 27. Qg6+ {[%clk 0:13:48.8]} 1-0

[Event "Live Chess"]
[Site "Chess.com"]
[Date "2023.09.16"]
[Round "-"]
[White "migu345"]
[Black "GabrielGGCF"]
[Result "0-1"]
[WhiteElo "989"]
[BlackElo "1384"]
[TimeControl "900+5"]
[EndTime "7:38:37 PDT"]
[Termination "GabrielGGCF venceu por desistência"]

1. e4 {[%clk 0:14:49.3]} 1... e5 {[%clk 0:15:03]} 2. Nf3 {[%clk 0:14:52.1]} 2...
Nc6 {[%clk 0:15:07.3]} 3. Bc4 {[%clk 0:14:52]} 3... Nd4 {[%clk 0:14:55.6]} 4.
Nxd4 {[%clk 0:14:47.3]} 4... exd4 {[%clk 0:14:57.9]} 5. d3 {[%clk 0:14:49.6]}
5... Bb4+ {[%clk 0:14:51.8]} 6. Bd2 {[%clk 0:14:49.6]} 6... Bxd2+ {[%clk
0:14:52.3]} 7. Nxd2 {[%clk 0:14:49.4]} 7... Nf6 {[%clk 0:14:56.1]} 8. Nb3 {[%clk
0:14:50.4]} 8... d5 {[%clk 0:14:56.4]} 9. Bb5+ {[%clk 0:14:48.3]} 9... c6 {[%clk
0:14:56.9]} 10. Ba4 {[%clk 0:14:47.4]} 10... b5 {[%clk 0:15:00.8]} 11. Nxd4
{[%clk 0:14:50.7]} 11... bxa4 {[%clk 0:15:02.9]} 12. Nxc6 {[%clk 0:14:53.5]}
12... Qb6 {[%clk 0:14:52.5]} 13. Ne5 {[%clk 0:14:40.5]} 13... Qxb2 {[%clk
0:14:54.9]} 14. exd5 {[%clk 0:14:39.2]} 14... Qxe5+ {[%clk 0:14:57]} 15. Qe2
{[%clk 0:14:36.4]} 15... Qxe2+ {[%clk 0:15:00.3]} 16. Kxe2 {[%clk 0:14:39.6]}
16... O-O {[%clk 0:15:01.1]} 0-1